[Event "Czech Youth U12 Boys 2024"]
[Site "Kouty nad Desnou"]
[Date "2024.03.11"]
[Round "3.7"]
[White "Krisica, Lukas"]
[Black "Fadrny, Jachym"]
[Result "1-0"]
[ECO "D55"]
[WhiteElo "1531"]
[BlackElo "1729"]
[Annotator "NA RC"]
[PlyCount "93"]
[EventDate "2024.03.10"]
[EventType "swiss"]
[EventCountry "CZE"]
[SourceTitle "playchess.com"]
[Source "ChessBase"]
[SourceQuality "1"]
[TimeControl "40/5400+30:1800+30"]

1. Nf3 {[%emt 0:00:52]} d5 {[%emt 0:00:44]} 2. d4 {[%emt 0:01:05]} e6 {[%emt 0:00:38]} 3. c4 {[%emt 0:01:41]} Nf6 {[%emt 0:00:51]} 4. Bg5 {[%emt 0:01:18]} Be7 {[%emt 0:02:00]} 5. Nc3 {[%emt 0:02:17]} O-O {[%emt 0:01:09]} 6. e3 {[%emt 0:02:01]} b6 {[%emt 0:00:42]} 7. cxd5 {[%emt 0:02:50]} exd5 {[%emt 0:00:54]} 8. Bd3 {[%emt 0:02:04]} Bb7 {[%emt 0:03:54]} 9. O-O {[%emt 0:04:13]} Nbd7 {[%emt 0:00:12]} 10. Rc1 {[%emt 0:07:59]} Rc8 {[%emt 0:02:53]} 11. Qa4 {[%emt 0:03:58]} Re8 {[%emt 0:06:54]} 12. Qxa7 {[%emt 0:04:33]} Bc6 {[%emt 0:03:21]} 13. Nb5 {[%emt 0:02:39]} Nb8 {[%emt 0:14:00]} 14. Ne5 {[%emt 0:07:01]} Bxb5 {[%emt 0:26:11]} 15. Bxb5 {[%emt 0:01:29]} Rf8 {[%emt 0:00:41]} 16. Rc2 {[%emt 0:02:08]} h6 {[%emt 0:03:30]} 17. Bh4 {[%emt 0:01:33]} g5 {[%emt 0:02:54]} 18. Bg3 {[%emt 0:00:57]} Ne4 {[%emt 0:02:59]} 19. Rfc1 {[%emt 0:01:16]} Nxg3 {[%emt 0:05:15]} 20. hxg3 {[%emt 0:01:06]} Bd6 {[%emt 0:03:24]} 21. Bd3 {[%emt 0:13:17]} f5 {[%emt 0:07:17]} 22. Bb5 {[%emt 0:03:50]} Qe7 {[%emt 0:03:52]} 23. Ng6 {[%emt 0:00:21]} Qf6 {[%emt 0:01:04]} 24. Nxf8 {[%emt 0:00:55]} Rxf8 {[%emt 0:00:16]} 25. Qa4 {[%emt 0:02:04]} f4 {[%emt 0:00:32]} 26. gxf4 {[%emt 0:00:45]} gxf4 {[%emt 0:00:08]} 27. Qb3 {[%emt 0:03:04]} Qg5 {[%emt 0:05:05]} 28. e4 {[%emt 0:08:59]} Kh8 {[%emt 0:01:50]} 29. Qxd5 {[%emt 0:01:24]} Qh4 {[%emt 0:00:46]} 30. Be2 {[%emt 0:10:45]} f3 {[%emt 0:00:57]} 31. Bxf3 {[%emt 0:01:36]} Rxf3 {[%emt 0:00:26]} 32. gxf3 {[%emt 0:00:18]} Qh3 {[%emt 0:00:09]} 33. Qf5 {[%emt 0:00:23]} Bh2+ {[%emt 0:00:47]} 34. Kh1 {[%emt 0:00:14]} Qh4 {[%emt 0:00:42]} 35. Qg4 {[%emt 0:00:23]} Qxg4 {[%emt 0:00:11]} 36. fxg4 {[%emt 0:00:08]} Bf4 {[%emt 0:00:16]} 37. Rxc7 {[%emt 0:00:14]} Bxc1 {[%emt 0:00:18]} 38. Rxc1 {[%emt 0:00:07]} Kg7 {[%emt 0:00:09]} 39. f4 {[%emt 0:00:27]} Na6 {[%emt 0:00:04]} 40. Rc6 {[%emt 0:00:07]} Nb4 {[%emt 0:00:03]} 41. Rxb6 {[%emt 0:30:10]} Nxa2 {[%emt 0:30:05]} 42. b4 {[%emt 0:00:08]} Nc3 {[%emt 0:00:06]} 43. e5 {[%emt 0:00:27]} Nd5 {[%emt 0:00:21]} 44. Rb7+ {[%emt 0:00:39]} Kg6 {[%emt 0:00:21]} 45. f5+ {[%emt 0:01:45]} Kg5 {[%emt 0:00:02]} 46. e6 {[%emt 0:00:10]} Kf6 {[%emt 0:00:11]} 47. Rf7+ {[%emt 0:00:28]} 1-0

[Event "Czech Youth U12 Boys 2024"]
[Site "Kouty nad Desnou"]
[Date "2024.03.11"]
[Round "3.8"]
[White "Artamonov, Mikhail"]
[Black "Havlik, David"]
[Result "1-0"]
[ECO "C47"]
[WhiteElo "1727"]
[BlackElo "1580"]
[Annotator "NA RC"]
[PlyCount "85"]
[EventDate "2024.03.10"]
[EventType "swiss"]
[EventCountry "CZE"]
[SourceTitle "playchess.com"]
[Source "ChessBase"]
[SourceQuality "1"]
[TimeControl "40/5400+30:1800+30"]

1. e4 {[%emt 0:00:02]} e5 {[%emt 0:00:05]} 2. Nf3 {[%emt 0:00:25]} Nf6 {[%emt 0:00:06]} 3. Nc3 {[%emt 0:01:31]} Nc6 {[%emt 0:00:08]} 4. Bc4 {[%emt 0:05:32]} Nxe4 {[%emt 0:01:58]} 5. Nxe4 {[%emt 0:03:45]} d5 {[%emt 0:00:07]} 6. Bb5 {[%emt 0:00:08]} dxe4 {[%emt 0:00:21]} 7. Nxe5 {[%emt 0:06:28]} Qg5 {[%emt 0:01:45]} 8. d4 {[%emt 0:05:25]} Qxg2 {[%emt 0:01:25]} 9. Rf1 {[%emt 0:01:36]} Bd6 {[%emt 0:03:03]} 10. Nxc6 {[%emt 0:02:43]} a6 {[%emt 0:03:11]} 11. Ba4 {[%emt 0:06:18]} O-O {[%emt 0:01:19]} 12. Na5 {[%emt 0:01:32]} b5 {[%emt 0:09:57]} 13. Bb3 {[%emt 0:04:00]} Bb4+ {[%emt 0:01:17]} 14. c3 {[%emt 0:02:07]} Bxa5 {[%emt 0:02:31]} 15. Bd5 {[%emt 0:02:43]} Bg4 {[%emt 0:05:31]} 16. Qd2 {[%emt 0:01:45]} Rad8 {[%emt 0:01:22]} 17. Bb3 {[%emt 0:04:06]} Qxh2 {[%emt 0:05:35]} 18. Qg5 {[%emt 0:03:16]} Qh3 {[%emt 0:08:05]} 19. Rg1 {[%emt 0:01:52]} h5 {[%emt 0:09:09]} 20. Be3 {[%emt 0:01:25]} Rd6 {[%emt 0:05:38]} 21. Rc1 {[%emt 0:14:18]} c6 {[%emt 0:08:11]} 22. Bf4 {[%emt 0:08:42]} Bd8 {[%emt 0:12:42]} 23. Qe5 {[%emt 0:10:22]} Rg6 {[%emt 0:05:11]} 24. Rg3 {[%emt 0:05:00]} Qh1+ {[%emt 0:03:11]} 25. Kd2 {[%emt 0:00:07]} Qh2 {[%emt 0:00:50]} 26. Rf1 {[%emt 0:02:16]} Bh4 {[%emt 0:06:29]} 27. Rxg4 {[%emt 0:01:55]} Qh3 {[%emt 0:03:18]} 28. Rxg6 {[%emt 0:00:35]} Qd3+ {[%emt 0:00:21]} 29. Ke1 {[%emt 0:00:15]} Qb1+ {[%emt 0:00:30]} 30. Bd1 {[%emt 0:02:35]} fxg6 {[%emt 0:00:24]} 31. Be3 {[%emt 0:02:12]} Rf3 {[%emt 0:01:36]} 32. Bd2 {[%emt 0:00:57]} Bf6 {[%emt 0:00:35]} 33. Qe6+ {[%emt 0:00:26]} Kh7 {[%emt 0:00:12]} 34. Rg1 {[%emt 0:00:25]} Rf5 {[%emt 0:00:47]} 35. Qe8 {[%emt 0:00:34]} Bg5 {[%emt 0:00:37]} 36. Rxg5 {[%emt 0:00:27]} Rxg5 {[%emt 0:00:16]} 37. Bxg5 {[%emt 0:00:01]} Qxb2 {[%emt 0:00:27]} 38. Bd2 {[%emt 0:00:01]} Qb1 39. Qxc6 {[%emt 0:00:23]} h4 {[%emt 0:01:07]} 40. Qd6 {[%emt 0:00:33]} Qxa2 {[%emt 0:00:34]} 41. Qf4 {[%emt 0:30:24]} Qe6 {[%emt 0:30:19]} 42. Qxh4+ {[%emt 0:00:31]} Kg8 {[%emt 0:00:04]} 43. Qg4 {[%emt 0:00:31]} 1-0

[Event "Czech Youth U12 Boys 2024"]
[Site "Kouty nad Desnou"]
[Date "2024.03.11"]
[Round "3.9"]
[White "Frantsev, Iegor"]
[Black "Zvolanek, Vojtech"]
[Result "1-0"]
[ECO "C52"]
[WhiteElo "1721"]
[BlackElo "1411"]
[Annotator "NA RC"]
[PlyCount "65"]
[EventDate "2024.03.10"]
[EventType "swiss"]
[EventCountry "CZE"]
[SourceTitle "playchess.com"]
[Source "ChessBase"]
[SourceQuality "1"]
[TimeControl "40/5400+30:1800+30"]

1. e4 {[%emt 0:00:04]} e5 {[%emt 0:00:13]} 2. Nf3 {[%emt 0:00:14]} Nc6 {[%emt 0:00:16]} 3. Bc4 {[%emt 0:00:17]} Bc5 {[%emt 0:00:13]} 4. b4 {[%emt 0:00:16]} Bxb4 {[%emt 0:01:10]} 5. c3 {[%emt 0:00:09]} Ba5 {[%emt 0:01:22]} 6. d4 {[%emt 0:00:57]} d6 {[%emt 0:04:55]} 7. Qb3 {[%emt 0:00:26]} Qe7 {[%emt 0:05:37]} 8. O-O {[%emt 0:00:43]} Nf6 {[%emt 0:02:32]} 9. d5 {[%emt 0:00:26]} Nd8 {[%emt 0:00:56]} 10. Qb5+ {[%emt 0:00:26]} c6 {[%emt 0:06:39]} 11. Qxa5 {[%emt 0:00:31]} b6 {[%emt 0:02:16]} 12. Qb4 {[%emt 0:04:59]} O-O {[%emt 0:02:32]} 13. Bg5 {[%emt 0:05:14]} Bd7 {[%emt 0:04:22]} 14. Nbd2 {[%emt 0:05:06]} c5 {[%emt 0:02:19]} 15. Qb2 {[%emt 0:01:56]} Rb8 {[%emt 0:01:50]} 16. a4 {[%emt 0:02:49]} Nb7 {[%emt 0:10:26]} 17. Bb5 {[%emt 0:01:42]} Rfd8 {[%emt 0:02:44]} 18. c4 {[%emt 0:01:35]} Bg4 {[%emt 0:02:04]} 19. Qc3 {[%emt 0:03:24]} h6 {[%emt 0:02:38]} 20. Bxf6 {[%emt 0:01:52]} Qxf6 {[%emt 0:02:02]} 21. Ba6 {[%emt 0:05:29]} Qg6 {[%emt 0:05:57]} 22. Bxb7 {[%emt 0:02:22]} Rxb7 {[%emt 0:00:19]} 23. Rfd1 {[%emt 0:02:00]} f5 {[%emt 0:09:28]} 24. exf5 {[%emt 0:20:57]} Bxf5 {[%emt 0:00:25]} 25. Nh4 {[%emt 0:01:17]} Qh5 {[%emt 0:01:20]} 26. Nxf5 {[%emt 0:00:23]} Qxf5 {[%emt 0:00:15]} 27. Qf3 {[%emt 0:01:28]} Qg5 {[%emt 0:01:33]} 28. Ne4 {[%emt 0:01:29]} Qg6 {[%emt 0:01:31]} 29. Re1 {[%emt 0:00:56]} Rf7 {[%emt 0:02:44]} 30. Qg3 {[%emt 0:00:40]} Qh5 {[%emt 0:02:55]} 31. f3 {[%emt 0:02:11]} Rf4 {[%emt 0:04:09]} 32. Reb1 {[%emt 0:01:26]} g5 {[%emt 0:08:50]} 33. Qxf4 {[%emt 0:00:29]} 1-0

[Event "Czech Youth U12 Boys 2024"]
[Site "Kouty nad Desnou"]
[Date "2024.03.11"]
[Round "3.10"]
[White "Bara, Jan"]
[Black "Malek, Daniel"]
[Result "1-0"]
[ECO "A11"]
[WhiteElo "1852"]
[BlackElo "2278"]
[Annotator "TA"]
[PlyCount "29"]
[EventDate "2024.03.10"]
[EventType "swiss"]
[EventCountry "CZE"]
[SourceTitle "playchess.com"]
[Source "ChessBase"]
[SourceQuality "1"]
[TimeControl "40/5400+30:1800+30"]

{[%evp 9,29,45,145,147,138,133,439,388,513,527,514,519,608,522,455,462,29992,29993,29993,550,629,85]} 1. c4 {[%emt 0:01:40]} c6 {[%emt 0:00:58]} 2. g3 {[%emt 0:00:17]} d5 {[%emt 0:02:55]} 3. Nf3 {[%emt 0:00:34]} dxc4 {[%emt 0:02:35]} 4. a4 {[%emt 0:01:24]} b5 {[%emt 0:06:17]} 5. Bg2 {[%emt 0:03:06]} Qb6 {[%emt 0:04:32]} (5... Bb7 $14) 6. axb5 $16 {[%emt 0:23:40]} cxb5 {[%emt 0:03:52]} 7. d3 {[%emt 0:00:40] [#] Zielt auf Be3 ab.} cxd3 $2 {[%emt 0:02:17][%mdl 8192]} (7... Bb7 $16 {ist eine bessere Chance.}) 8. Ne5 {[%emt 0:01:18]} (8. exd3 Bb7 $16) 8... Bb7 {[%emt 0:03:47]} 9. Be3 {[%emt 0:01:59]} Qc7 {[%emt 0:02:01]} 10. Qb3 $1 {[%emt 0:01:41]} (10. Nxd3 $2 Bxg2 11. Rg1 Bc6 $19) 10... Nd7 {[%emt 0:15:36]} 11. Qxf7+ {[%emt 0:10:23]} (11. Nxf7 Bxg2 12. Nxh8 Qc2 (12... Bxh1 13. Qxg8 Nf6 14. Qf7+ Kd7 15. Nc3 $11) 13. Qf7+ Kd8 $19) 11... Kd8 {[%emt 0:00:17] [#]} 12. Nxd7 $1 {[%emt 0:01:20]} (12. Nxd3 Bxg2 13. Nf4 Qc6 $11) 12... Kxd7 {[%emt 0:00:52]} (12... Nh6 $18) 13. Bh3+ {[%emt 0:00:38]} Kc6 {[%emt 0:01:30]} 14. Qe6+ {[%emt 0:00:22]} (14. Nd2 $142 Qc8 15. Rc1+ (15. Bxc8 Rxc8 16. Rxa7 Rd8 $18) 15... Kd6 16. Bf4+ (16. Bxc8 Rxc8 17. Rxc8 Bxc8 $18) 16... e5 17. Bxe5+ (17. Bxc8 Rxc8 18. Rxc8 Be7 $18) 17... Kxe5 18. Qf4+ (18. Bxc8 Rxc8 19. Rxc8 Bxc8 $18) 18... Kd5 19. e4+ Kd4 20. Nf3#) 14... Qd6 $18 {[%emt 0:00:21]} 15. Bg2+ $2 {[%emt 0:00:17] Nach der Eröffnung ein Spiel auf ein Tor.   Gewichteter Fehlerwert: Weiß=0.49/Schwarz=1.39.  Verlustzug:     	---       	Schwarz=1     Fehler:       	---       	Schwarz=1     Ungenau:       	---       	Schwarz=1     OK:         	Weiß=1     	Schwarz=2     Bester:       	Weiß=3     	---        Stark:        	Weiß=1     	---} ({Und nicht} 15. exd3 Qxe6 16. Bxe6 Kd6 17. Bxg8 Bxh1 $17) (15. Qa2 $18) 1-0

[Event "Czech Youth U12 Boys 2024"]
[Site "Kouty nad Desnou"]
[Date "2024.03.11"]
[Round "3.11"]
[White "Broz, Pavel"]
[Black "Sudrich, Radek"]
[Result "0-1"]
[ECO "B40"]
[WhiteElo "1911"]
[BlackElo "1998"]
[Annotator "RC"]
[PlyCount "58"]
[EventDate "2024.03.10"]
[EventType "swiss"]
[EventCountry "CZE"]
[SourceTitle "playchess.com"]
[Source "ChessBase"]
[SourceQuality "1"]
[TimeControl "40/5400+30:1800+30"]

1. e4 {[%emt 0:00:08]} c5 {[%emt 0:00:14]} 2. Nf3 {[%emt 0:00:58]} e6 {[%emt 0:01:03]} 3. d4 {[%emt 0:04:24]} cxd4 {[%emt 0:02:21]} 4. Nxd4 {[%emt 0:03:44]} Nf6 {[%emt 0:01:59]} 5. Bd3 {[%emt 0:04:37]} Nc6 {[%emt 0:02:30]} 6. Be3 {[%emt 0:07:06]} Be7 {[%emt 0:01:16]} 7. O-O {[%emt 0:03:35]} O-O {[%emt 0:01:50]} 8. Nc3 {[%emt 0:05:48]} d5 {[%emt 0:03:19]} 9. Nxc6 {[%emt 0:05:21]} bxc6 {[%emt 0:01:23]} 10. e5 {[%emt 0:03:34]} Nd7 {[%emt 0:00:15]} 11. f4 {[%emt 0:00:20]} f5 {[%emt 0:00:10]} 12. exf6 {[%emt 0:01:56]} Nxf6 {[%emt 0:00:07]} 13. Bd4 {[%emt 0:02:10]} c5 {[%emt 0:01:23]} 14. Bxf6 {[%emt 0:01:45]} Bxf6 {[%emt 0:00:17]} 15. Qf3 {[%emt 0:04:18]} c4 {[%emt 0:00:14]} 16. Be2 {[%emt 0:00:12]} Qb6+ {[%emt 0:00:11]} 17. Kh1 {[%emt 0:00:31]} Qxb2 {[%emt 0:00:13]} 18. f5 {[%emt 0:00:33]} Qxc3 {[%emt 0:00:14]} 19. fxe6 {[%emt 0:02:28]} Qxf3 {[%emt 0:00:08]} 20. Bxf3 {[%emt 0:00:14]} Bxe6 {[%emt 0:00:23]} 21. Rae1 {[%emt 0:00:16]} Bf7 {[%emt 0:00:12]} 22. Rd1 {[%emt 0:02:05]} Rad8 {[%emt 0:01:06]} 23. g3 {[%emt 0:00:54]} d4 {[%emt 0:00:10]} 24. h4 {[%emt 0:00:21]} d3 {[%emt 0:00:09]} 25. cxd3 {[%emt 0:00:14]} cxd3 {[%emt 0:00:05]} 26. Be4 {[%emt 0:00:25]} d2 {[%emt 0:00:21]} 27. Rf2 {[%emt 0:01:42]} Bc3 {[%emt 0:00:38]} 28. Rf3 {[%emt 0:00:22]} Bh5 {[%emt 0:00:59]} 29. Rxf8+ {[%emt 0:00:45]} Rxf8 {[%emt 0:00:33]} 0-1

[Event "Czech Youth U12 Boys 2024"]
[Site "Kouty nad Desnou"]
[Date "2024.03.11"]
[Round "3.12"]
[White "Novotny, Adam"]
[Black "Hanzel, Martin"]
[Result "1-0"]
[ECO "B40"]
[WhiteElo "2072"]
[BlackElo "1474"]
[Annotator "RC"]
[PlyCount "51"]
[EventDate "2024.03.10"]
[EventType "swiss"]
[EventCountry "CZE"]
[SourceTitle "playchess.com"]
[Source "ChessBase"]
[SourceQuality "1"]
[TimeControl "40/5400+30:1800+30"]

1. e4 {[%emt 0:00:06]} c5 {[%emt 0:00:13]} 2. Nf3 {[%emt 0:00:15]} e6 {[%emt 0:00:10]} 3. d4 {[%emt 0:01:49]} cxd4 {[%emt 0:00:15]} 4. Nxd4 {[%emt 0:01:15]} Nf6 {[%emt 0:00:26]} 5. Nc3 {[%emt 0:02:11]} Nc6 {[%emt 0:01:42]} 6. Be3 {[%emt 0:03:27]} Bb4 {[%emt 0:00:38]} 7. f3 {[%emt 0:05:10]} d5 {[%emt 0:02:16]} 8. Bb5 {[%emt 0:07:10]} Bd7 {[%emt 0:01:12]} 9. Bxc6 {[%emt 0:09:24]} Bxc6 {[%emt 0:00:14]} 10. e5 {[%emt 0:04:25]} Nd7 {[%emt 0:01:36]} 11. f4 {[%emt 0:06:01]} Nc5 {[%emt 0:01:08]} 12. Nxc6 {[%emt 0:07:00]} bxc6 {[%emt 0:00:52]} 13. O-O {[%emt 0:07:26]} Bxc3 {[%emt 0:00:37]} 14. Bxc5 {[%emt 0:02:02]} Qa5 {[%emt 0:01:14]} 15. bxc3 {[%emt 0:02:05]} Qxc5+ {[%emt 0:01:23]} 16. Qd4 {[%emt 0:00:42]} Qe7 {[%emt 0:00:28]} 17. f5 {[%emt 0:03:54]} c5 {[%emt 0:00:50]} 18. Qa4+ {[%emt 0:02:27]} Qd7 {[%emt 0:00:29]} 19. Qg4 {[%emt 0:05:30]} exf5 {[%emt 0:01:35]} 20. Qxg7 {[%emt 0:01:01]} O-O-O {[%emt 0:00:51]} 21. Qf6 {[%emt 0:02:17]} Rde8 {[%emt 0:02:52]} 22. Qxf5 {[%emt 0:01:47]} Qxf5 {[%emt 0:00:35]} 23. Rxf5 {[%emt 0:00:07]} Re7 24. Rd1 {[%emt 0:01:38]} Rd7 {[%emt 0:01:05]} 25. Rdf1 {[%emt 0:00:21]} Rf8 {[%emt 0:01:13]} 26. e6 {[%emt 0:00:57]} 1-0

[Event "Czech Youth U12 Boys 2024"]
[Site "Kouty nad Desnou"]
[Date "2024.03.11"]
[Round "4.1"]
[White "Policar, Martin"]
[Black "Velim, Vojtech"]
[Result "1-0"]
[ECO "A01"]
[WhiteElo "1758"]
[BlackElo "1889"]
[Annotator "NA RC"]
[PlyCount "140"]
[EventDate "2024.03.10"]
[EventType "swiss"]
[EventCountry "CZE"]
[SourceTitle "playchess.com"]
[Source "ChessBase"]
[SourceQuality "1"]
[TimeControl "40/5400+30:1800+30"]

1. b3 {[%emt 0:00:12]} b6 {[%emt 0:00:15]} 2. Bb2 {[%emt 0:00:20]} Bb7 {[%emt 0:00:07]} 3. e3 {[%emt 0:00:28]} e6 {[%emt 0:01:19]} 4. Nf3 {[%emt 0:01:46]} Nf6 {[%emt 0:01:07]} 5. d3 {[%emt 0:03:38]} Be7 {[%emt 0:01:04]} 6. Be2 {[%emt 0:00:44] A01: Nimzowitsch-Larsen Opening.} c5 {[%emt 0:00:18]} 7. Nbd2 {[%emt 0:00:46]} Nc6 {[%emt 0:01:05]} 8. a3 {[%emt 0:08:36]} Rc8 {[%emt 0:02:28]} 9. c4 {[%emt 0:05:23]} a5 {[%emt 0:06:39]} 10. Qc2 {[%emt 0:07:16]} O-O {[%emt 0:06:16]} 11. O-O {[%emt 0:01:14]} Re8 {[%emt 0:01:18]} 12. Rfd1 {[%emt 0:05:09]} d5 {[%emt 0:07:46]} 13. Nf1 {[%emt 0:02:15]} (13. Ne5 $11 {hält das Gleichgewicht.}) 13... d4 {[%emt 0:02:26]} 14. exd4 {[%emt 0:00:53]} cxd4 {[%emt 0:00:24]} 15. Ng3 {[%emt 0:05:42]} Qd7 {[%emt 0:06:31]} 16. Nd2 {[%emt 0:02:50]} e5 {[%emt 0:02:48]} (16... Ne5 $17) 17. Bf3 {[%emt 0:03:07]} Nd8 {[%emt 0:01:48]} 18. Bxb7 {[%emt 0:00:15]} Qxb7 {[%emt 0:00:10]} 19. Re1 {[%emt 0:00:47]} Bd6 {[%emt 0:15:49]} 20. Nde4 {[%emt 0:01:15]} Nxe4 {[%emt 0:02:01]} 21. Nxe4 {[%emt 0:00:41]} Qc6 {[%emt 0:07:27]} 22. Qe2 {[%emt 0:04:15]} f5 {[%emt 0:03:48]} 23. Ng3 {[%emt 0:00:23]} g6 {[%emt 0:03:09]} 24. Bxd4 $1 {[%emt 0:01:17]} Ne6 {[%emt 0:09:37]} 25. Bb2 {[%emt 0:01:56]} Nf4 {[%emt 0:02:33]} 26. Qf1 {[%emt 0:00:17]} h5 {[%emt 0:05:58]} 27. Rad1 {[%emt 0:01:40]} Qc7 {[%emt 0:02:36]} 28. Ne2 {[%emt 0:00:43]} Ne6 {[%emt 0:00:16]} 29. g3 {[%emt 0:00:52]} h4 {[%emt 0:02:07]} 30. Qg2 {[%emt 0:00:44]} hxg3 {[%emt 0:00:40]} 31. hxg3 {[%emt 0:02:31]} Kf7 {[%emt 0:02:48]} (31... Qh7 $16 {is a better defense.} 32. Nc3 Qh5) 32. Qd5 {[%emt 0:03:56]} Qb8 {[%emt 0:01:54]} (32... Rcd8 $16) 33. Kg2 {[%emt 0:02:28]} Rc5 {[%emt 0:01:07]} 34. Qf3 {[%emt 0:00:45]} Ng5 {[%emt 0:00:05]} 35. Qe3 {[%emt 0:00:31] [#]} f4 $1 {[%emt 0:00:41]} 36. Nxf4 {[%emt 0:09:28]} exf4 {[%emt 0:01:04]} 37. Qxe8+ {[%emt 0:03:16]} Qxe8 {[%emt 0:00:10]} 38. Rxe8 {[%emt 0:00:09]} f3+ {[%emt 0:00:22]} 39. Kf1 {[%emt 0:00:11]} Kxe8 {[%emt 0:00:05]} 40. Bd4 {[%emt 0:01:32]} Rc6 {[%emt 0:01:18]} 41. Be3 {[%emt 0:30:35]} Nf7 {[%emt 0:30:34]} 42. a4 {[%emt 0:01:51]} g5 {[%emt 0:00:35]} 43. d4 {[%emt 0:00:39]} Bb4 {[%emt 0:00:24]} 44. Bd2 {[%emt 0:00:56]} Rh6 {[%emt 0:01:02]} 45. Kg1 {[%emt 0:00:10]} Be7 {[%emt 0:00:08]} 46. Re1 {[%emt 0:00:35]} Kd7 {[%emt 0:00:08]} 47. Re3 {[%emt 0:00:12]} Rf6 {[%emt 0:00:19]} 48. Re4 $2 {[%emt 0:02:12]} (48. Kf1) 48... Re6 $19 {[%emt 0:01:52]} 49. Rxe6 {[%emt 0:01:06]} Kxe6 {[%emt 0:00:08]} 50. g4 {[%emt 0:00:51]} Kf6 {[%emt 0:01:26]} 51. Bc3 {[%emt 0:01:02]} Bd6 {[%emt 0:01:09]} 52. c5 {[%emt 0:00:19]} bxc5 {[%emt 0:00:22]} 53. dxc5+ {[%emt 0:00:05]} Be5 {[%emt 0:00:06]} 54. Bxa5 {[%emt 0:00:16]} Ke6 {[%emt 0:00:09]} 55. Bd2 {[%emt 0:00:46]} Kd5 {[%emt 0:00:22]} 56. b4 {[%emt 0:00:12]} Kc4 {[%emt 0:00:37]} 57. c6 {[%emt 0:01:54]} Bc7 {[%emt 0:00:33]} 58. b5 {[%emt 0:00:26]} Bd8 {[%emt 0:00:58]} 59. Be3 {[%emt 0:00:34]} Ne5 {[%emt 0:00:31]} 60. Bxg5 {[%emt 0:00:15]} Bc7 {[%emt 0:00:43]} 61. Be3 {[%emt 0:00:42]} Bd8 {[%emt 0:00:42]} 62. Ba7 {[%emt 0:01:25]} Bc7 {[%emt 0:00:43]} 63. b6 {[%emt 0:00:18]} Nxc6 {[%emt 0:00:12]} 64. bxc7 {[%emt 0:00:05]} Nxa7 {[%emt 0:00:12]} 65. Kh2 {[%emt 0:00:19]} Kd5 {[%emt 0:00:35]} 66. Kg3 {[%emt 0:00:11]} Ke4 {[%emt 0:00:06]} 67. a5 {[%emt 0:00:34]} Nc8 {[%emt 0:00:53]} 68. g5 {[%emt 0:00:20]} Kf5 {[%emt 0:00:07]} 69. Kxf3 {[%emt 0:00:05]} Kxg5 {[%emt 0:00:05]} 70. Ke4 {[%emt 0:00:09]} Kf6 {[%emt 0:01:31]} 1-0

[Event "Czech Youth U12 Boys 2024"]
[Site "Kouty nad Desnou"]
[Date "2024.03.11"]
[Round "4.2"]
[White "Honcharov, Makar"]
[Black "Hladky, Mikulas"]
[Result "1-0"]
[ECO "C64"]
[WhiteElo "1872"]
[BlackElo "1798"]
[Annotator "NA RC"]
[PlyCount "53"]
[EventDate "2024.03.10"]
[EventType "swiss"]
[EventCountry "CZE"]
[SourceTitle "playchess.com"]
[Source "ChessBase"]
[SourceQuality "1"]
[TimeControl "40/5400+30:1800+30"]

1. e4 {[%emt 0:00:04]} e5 {[%emt 0:00:11]} 2. Nf3 {[%emt 0:00:07]} Nc6 {[%emt 0:00:16]} 3. Bb5 {[%emt 0:00:05]} Bc5 {[%emt 0:00:51]} 4. c3 {[%emt 0:00:29]} d6 {[%emt 0:01:22]} 5. O-O {[%emt 0:00:29]} a6 {[%emt 0:03:30]} 6. Ba4 {[%emt 0:00:08]} b5 {[%emt 0:03:47]} 7. Bb3 {[%emt 0:01:17]} Nf6 {[%emt 0:01:45]} 8. Qe2 {[%emt 0:00:10]} O-O {[%emt 0:01:32]} 9. Rd1 {[%emt 0:00:48] 9.Rd1 punktet besser als 9.d3.} Qe7 {[%emt 0:02:16]} 10. h3 {[%emt 0:01:22] C77: Spanische Partie (Anderssen-Variante).} Bb6 {[%emt 0:05:14]} 11. d3 {[%emt 0:02:27]} h6 {[%emt 0:01:11]} 12. Nbd2 {[%emt 0:00:59]} Na5 {[%emt 0:01:04]} 13. Bc2 {[%emt 0:00:05]} c5 {[%emt 0:00:11]} 14. Nf1 {[%emt 0:00:21]} Nc6 {[%emt 0:00:43]} 15. g4 $146 {[%emt 0:05:37]} ({Predecessor:} 15. Ng3 $14 Be6 16. Nh4 Kh7 17. Nhf5 Bxf5 18. Nxf5 Qe6 19. Be3 Ne7 20. d4 Nxf5 21. exf5 {0-1 Varshini,V (2126)-Coto Mederos,M (2353) Titled Tuesday intern op 03rd May Early blitz 2022 (9)}) 15... d5 {[%emt 0:05:39]} 16. Ng3 {[%emt 0:00:15]} dxe4 {[%emt 0:02:15]} 17. dxe4 {[%emt 0:01:35]} b4 {[%emt 0:05:26]} (17... c4 $11) 18. Nh4 {[%emt 0:10:07]} Rd8 {[%emt 0:03:13]} 19. Be3 {[%emt 0:02:30]} Rxd1+ {[%emt 0:00:44]} 20. Rxd1 {[%emt 0:00:11]} bxc3 {[%emt 0:06:26]} 21. bxc3 {[%emt 0:00:11]} Ba5 {[%emt 0:02:40]} 22. Ngf5 {[%emt 0:02:12]} Bxf5 {[%emt 0:00:36]} 23. Nxf5 {[%emt 0:00:10]} Qf8 {[%emt 0:06:49]} 24. Qc4 {[%emt 0:01:20]} Rd8 $18 {[%emt 0:03:13]} 25. Rxd8 {[%emt 0:01:59]} Qxd8 {[%emt 0:00:21]} 26. Bb3 {[%emt 0:01:54]} Qc7 {[%emt 0:02:39]} 27. Bxc5 1-0